fUSD/lending_fUSD_20250622
["ID","MTS","AMOUNT","RATE_DAILY","PERIOD"]
[366944097,1750596638029,-300.0,0.0001929,2]
[366944099,1750596638039,-20920.82174652,0.0001929,2]
[366944101,1750596638049,-168.0,0.00019295,2]
[366944103,1750596638063,-6530.15125589,0.00019298,2]
[366944106,1750596638072,-300.0,0.00019299,2]
[366944108,1750596638082,-666.0,0.00019299,2]
[366944110,1750596638092,-5000.0,0.00019299,2]
[366944112,1750596638103,-240.46433713,0.000193,2]
[366944114,1750596638113,-154.46267777,0.000193,2]
[366944116,1750596638122,-10000.0,0.000193,3]
[366944118,1750596638133,-834.42866044,0.000193,3]
[366944120,1750596638143,-490.0,0.000193,2]
[366944122,1750596638153,-168.0,0.00019334,2]
[366944124,1750596638162,-500.0,0.00019373,2]
[366944126,1750596638172,-500.0,0.00019373,2]
[366944128,1750596638181,-500.0,0.00019373,2]
[366944130,1750596638191,-500.0,0.00019373,2]
[366944132,1750596638200,-500.0,0.00019373,2]
[366944133,1750596638209,-500.0,0.00019373,2]
[366944135,1750596638219,-559.69951743,0.00019373,2]
[366944137,1750596638228,-500.0,0.00019373,2]
[366944140,1750596638238,-500.74374198,0.00019373,2]
[366944142,1750596638248,-500.0,0.00019373,2]
[366944143,1750596638257,-541.45082461,0.00019373,2]
[366944145,1750596638267,-500.0,0.00019373,2]
[366944147,1750596638277,-500.0,0.00019373,2]
[366944149,1750596638287,-528.80985038,0.00019373,2]
[366944152,1750596638297,-502.83672334,0.00019373,2]
[366944154,1750596638307,-156.07488646,0.00019373,2]
[366944155,1750596638316,-502.52562412,0.00019373,2]
[366944157,1750596638326,-500.83582982,0.00019373,2]
[366944160,1750596638336,-367.84689339,0.00019373,2]
[366944161,1750596638345,-500.64588502,0.00019373,2]
[366944164,1750596638356,-798.25,0.00019386,2]
[366944165,1750596638365,-151.48,0.0001939,2]
[366944168,1750596638375,-151.48,0.0001939,2]
[366944169,1750596638385,-151.48,0.0001939,2]
[366944171,1750596638394,-500.0,0.00019391,2]
[366944174,1750596638404,-500.0,0.00019391,2]
[366944176,1750596638414,-500.0,0.00019391,2]
[366944178,1750596638424,-222.40576646,0.00019391,2]
[366944180,1750596638434,-500.0,0.00019391,2]
[366944182,1750596638444,-500.0,0.00019391,2]
[366944184,1750596638453,-500.0,0.00019391,2]
[366944186,1750596638463,-500.0,0.00019391,2]
[366944188,1750596638472,-359.48166746,0.00019391,2]
[366944190,1750596638481,-500.0,0.00019391,2]
[366944192,1750596638490,-500.0,0.00019391,2]
[366944194,1750596638500,-500.0,0.00019391,2]
[366944196,1750596638509,-187.87077986,0.00019391,2]
[366944198,1750596638519,-178.50281608,0.00019391,2]
[366944200,1750596638529,-500.0,0.00019391,2]
[366944202,1750596638539,-155.183,0.00019391,2]
[366944204,1750596638548,-4348837.60679581,0.00019392,3]
[366944346,1750596640084,-2181.17873791,0.00019392,3]
[366944498,1750596641601,201.0,0.00016468,2]
[366944645,1750596642881,-162.19579883,0.000191,2]
[366944646,1750596642891,-153.98248286,0.00019391,2]
[366944647,1750596642900,-573.3876609,0.00019392,3]
[366944949,1750596645851,-500.0,0.00019391,2]
[366944951,1750596645861,-500.0,0.00019391,2]
[366944953,1750596645870,-500.0,0.00019391,2]
[366944955,1750596645879,-500.0,0.00019391,2]
[366944957,1750596645889,-273.00000002,0.00019391,2]
[366945834,1750596672515,204.0,0.00016468,2]
[366945853,1750597208323,25510.964076,7.945e-05,2]
[366945863,1750597313431,234.59,0.00013699,2]
[366945865,1750597348547,-200.0,0.000181,6]
[366945866,1750597348575,-250.0,0.00018145,2]
[366945867,1750597348601,-2751.0,0.00018191,2]
[366945868,1750597348629,-500.0,0.000182,6]
[366945869,1750597348657,-1200.0,0.00018245,2]
[366945870,1750597348685,-300.0,0.00018245,2]
[366945871,1750597348712,-300.0,0.00018245,2]
[366945872,1750597348740,-12680.17,0.00018246,2]
[366945873,1750597396782,150.0,0.00021521,120]
[366945879,1750597517390,-1000.0,0.00018307,2]
[366945880,1750597517422,-370.62,0.00018356,2]
[366945881,1750597517450,-531.49,0.00018453,2]
[366945882,1750597517479,-1400.0,0.000185,6]
[366945883,1750597517506,-200.0,0.000186,6]
[366945884,1750597517534,-1200.0,0.0001868,2]
[366945885,1750597517564,-201.0,0.00018681,2]
[366945886,1750597517592,-201.0,0.00018681,2]
[366945887,1750597517620,-205.0,0.00018681,2]
[366945888,1750597517651,-202.0,0.00018681,2]
[366945889,1750597517679,-200.0,0.000187,6]
[366945890,1750597517706,-300.0,0.00018711,2]
[366945891,1750597517734,-945.0,0.00018712,2]
[366945892,1750597517761,-156.0,0.00018712,2]
[366945893,1750597517787,-803.0,0.00018712,2]
[366945894,1750597517813,-638.0,0.00018712,2]
[366945895,1750597517838,-1161.0,0.00018712,2]
[366945896,1750597517865,-2005.0,0.00018712,2]
[366945897,1750597517891,-591.0,0.00018712,2]
[366945898,1750597517917,-556.684,0.00018712,2]
[366945933,1750597793115,265.74,0.00018194,2]
[366945934,1750597794337,166.0,0.000186,2]
[366945935,1750597802438,166.0,0.000186,3]
[366945937,1750597814019,166.0,0.000186,2]
[366945939,1750597821732,166.0,0.000186,2]
[366945940,1750597830966,166.0,0.000186,3]
[366945943,1750597831815,-302.75853847,0.000188,6]
[366945944,1750597831828,-97.24146153,0.000188,6]
[366945945,1750597831837,-152.92,0.00018842,2]
[366945946,1750597831847,-166.37,0.00018859,2]
[366945947,1750597831857,-383.46853847,0.000189,6]
[366945948,1750597831926,-460.0,0.000189,6]
[366945949,1750597832093,-56.53146153,0.000189,6]
[366945950,1750597832103,-150.0,0.00018904,2]
[366945951,1750597832113,-201.0,0.00018933,2]
[366945952,1750597832123,-121.62043574,0.00018999,2]
[366945953,1750597832134,-178.37956426,0.00018999,2]
[366945954,1750597832143,-187.64903434,0.00018999,2]
[366945955,1750597832156,-1012.35096566,0.00018999,2]
[366945956,1750597832165,-300.0,0.00018999,2]
[366945957,1750597832175,-160.0,0.00019,4]
[366945958,1750597832184,-160.0,0.00019,4]
[366945959,1750597832194,-160.0,0.00019,4]
[366945960,1750597832204,-254.76,0.00019,2]
[366945961,1750597832213,-166.0,0.00019,3]
[366945962,1750597832223,-166.0,0.00019,3]
[366945963,1750597832233,-166.0,0.00019,3]
[366945964,1750597832242,-166.0,0.00019,3]
[366945965,1750597832252,-166.0,0.00019,3]
[366945966,1750597832262,-166.0,0.00019,2]
[366945967,1750597832272,-166.0,0.00019,2]
[366945968,1750597832282,-166.0,0.00019,2]
[366945969,1750597832291,-166.0,0.00019,2]
[366945970,1750597832301,-166.0,0.00019,2]
[366945971,1750597832311,-170.77,0.00019,2]
[366945972,1750597832320,-666.0,0.00019178,2]
[366945973,1750597832329,-171.45,0.00019178,2]
[366945974,1750597832339,-142.96577701,0.00019188,2]
[366945975,1750597832350,-294.09339797,0.00019188,2]
[366945992,1750597837900,-1520.79682502,0.00019188,2]
[366945993,1750597837910,-207.4,0.00019188,2]
[366945994,1750597837920,-455.61,0.000192,2]
[366945995,1750597837929,-2030.296672,0.00019243,2]
[366945996,1750597837939,-500.0,0.00019252,2]
[366945997,1750597837949,-168.0,0.00019261,2]
[366945998,1750597837959,-929.0,0.00019287,2]
[366945999,1750597837968,-1278.0,0.00019287,2]
[366946000,1750597837979,-1350.059,0.00019287,2]
[366946001,1750597837989,-151.0,0.00019288,2]
[366946002,1750597837999,-165.83,0.0001929,2]
[366946003,1750597838009,-2105.41764886,0.00019298,2]
[366946004,1750597838019,-192.37146968,0.000193,2]
[366946005,1750597838029,-6570.0,0.000193,2]
[366946006,1750597838039,-154.29751187,0.000193,2]
[366946007,1750597838049,-169.0,0.000193,4]
[366946008,1750597838059,-5000.0,0.000193,2]
[366946009,1750597838069,-25342.7621,0.000193,2]
[366946010,1750597838079,-222.33577158,0.000193,2]
[366946011,1750597838089,-5877.13613031,0.000193,2]
[366946012,1750597838100,-5872.97542469,0.000193,2]
[366946013,1750597838112,-880.12683452,0.00019353,2]
[366946014,1750597838123,-151.49,0.0001939,2]
[366946015,1750597838132,-151.78003264,0.00019391,2]
[366946016,1750597838142,-252.15437115,0.00019391,2]
[366946017,1750597838152,-3433.48553,0.00019391,2]
[366946018,1750597838162,-744.25880383,0.00019392,2]
[366946019,1750597838172,-744.25880383,0.00019392,2]
[366946020,1750597838181,-200.0,0.00019392,2]
[366946021,1750597838192,-1282.04753492,0.00019398,5]
[366946022,1750597838202,-684.19100148,0.00019399,2]
[366946023,1750597838211,-272.59183595,0.00019399,2]
[366946024,1750597838221,-155.183,0.00019399,2]
[366946025,1750597838230,-178.50281608,0.00019399,2]
[366946026,1750597838240,-187.87077986,0.00019399,2]
[366946028,1750597838249,-300.0,0.00019399,2]
[366946029,1750597838259,-235265.82034947,0.000194,2]
[366946030,1750597838268,-652.0,0.000194,2]
[366946031,1750597838279,-1024644.07812537,0.000194,2]
[366946032,1750597838289,-150.0,0.000194,2]
[366946033,1750597838298,-2107.18464494,0.000194,2]
[366946034,1750597838308,-300.0,0.00019542,2]
[366946035,1750597838318,-1210.817421,0.00019582,2]
[366946036,1750597838329,-200.0,0.00019586,2]
[366946038,1750597838338,-3433.48554,0.000196,2]
[366946040,1750597838347,-150.01,0.00019633,2]
[366946041,1750597838357,-150.42,0.00019716,2]
[366946042,1750597838367,-150.0,0.00019716,2]
[366946043,1750597838376,-150.0,0.00019716,2]
[366946044,1750597838386,-654.83,0.00019726,2]
[366946045,1750597838397,-168.0,0.00019733,2]
[366946046,1750597838408,-5877.1361303,0.00019733,2]
[366946047,1750597838417,-5872.97542461,0.00019733,2]
[366946048,1750597838427,-168.0,0.00019735,2]
[366946049,1750597838436,-427.27,0.00019767,2]
[366946050,1750597838447,-376.804,0.0001977,2]
[366946051,1750597838458,-168.54441411,0.0001977,2]
[366946052,1750597838467,-200.0,0.00019782,2]
[366946053,1750597838478,-4096.0,0.00019789,2]
[366946054,1750597838488,-156.0,0.00019789,2]
[366946055,1750597838498,-885.0,0.00019789,2]
[366946056,1750597838508,-855.0,0.00019789,2]
[366946057,1750597838518,-500.0,0.000198,5]
[366946058,1750597838528,-166.0,0.000198,5]
[366946059,1750597838537,-166.89,0.00019897,2]
[366946060,1750597838547,-332.17031955,0.000199,2]
[366946061,1750597838556,-1400.0,0.000199,7]
[366946062,1750597838566,-2471.25208396,0.000199,2]
[366946063,1750597838575,-2471.25208389,0.000199,2]
[366946064,1750597838585,-2471.25208389,0.000199,2]
[366946065,1750597838595,-2471.25208389,0.000199,2]
[366946066,1750597838604,-2471.25208389,0.000199,2]
[366946067,1750597838614,-2471.25208389,0.000199,2]
[366946068,1750597838624,-2471.25208389,0.000199,2]
[366946069,1750597838634,-2471.25208389,0.000199,2]
[366946070,1750597838644,-500.0,0.0001991,5]
[366946071,1750597838653,-250.0,0.0001991,2]
[366946072,1750597838663,-2500.0,0.0001991,2]
[366946073,1750597838673,-250.0,0.0001991,2]
[366946074,1750597838682,-2500.0,0.0001991,2]
[366946075,1750597838691,-3336.0,0.00019917,2]
[366946076,1750597838700,-267.78901427,0.00019936,2]
[366946077,1750597838710,-168.0,0.0001994,2]
[366946078,1750597838720,-221.0,0.0001994,2]
[366946079,1750597838730,-168.0,0.00019966,2]
[366946080,1750597838739,-725.32,0.00019973,2]
[366946081,1750597838749,-2471.25208389,0.00019974,2]
[366946082,1750597838758,-510.0,0.0001998,2]
[366946083,1750597838768,-300.0,0.00019998,2]
[366946084,1750597838777,-2279.5296264,0.00019999,2]
[366946085,1750597838787,-110562.6317849,0.00019999,2]
[366946086,1750597838796,-2009.0189079,0.00019999,2]
[366946087,1750597838806,-23618.3527263,0.00019999,2]
[366946088,1750597838815,-9039.5116383,0.00019999,2]
[366946089,1750597838825,-3674.72,0.0002,2]
[366946090,1750597838834,-847.08,0.0002,2]
[366946091,1750597838844,-200.0,0.0002,2]
[366946092,1750597838853,-1258.54217501,0.0002,2]
[366946093,1750597838863,-168.0,0.00020013,2]
[366946094,1750597838872,-222.33577157,0.00020022,2]
[366946095,1750597838882,-341.77,0.00020027,2]
[366946096,1750597838891,-200.0,0.00020089,2]
[366946097,1750597838901,-3433.48554,0.000201,2]
[366946098,1750597838910,-168.0,0.0002015,2]
[366946099,1750597838921,-5877.1361303,0.00020167,2]
[366946100,1750597838930,-5872.97542461,0.00020167,2]
[366946101,1750597838940,-234.59,0.00020187,2]
[366946102,1750597838950,-3674.72,0.000202,2]
[366946103,1750597838960,-201.0,0.00020216,3]
[366946104,1750597838970,-150.0,0.00020247,2]
[366946105,1750597838979,-150.0,0.00020247,2]
[366946106,1750597838990,-150.0,0.00020247,2]
[366946107,1750597839000,-500.0,0.00020273,2]
[366946108,1750597839009,-500.0,0.00020273,2]
[366946109,1750597839019,-500.0,0.00020273,2]
[366946110,1750597839028,-500.0,0.00020273,2]
[366946111,1750597839038,-500.0,0.00020273,2]
[366946112,1750597839047,-500.0,0.00020273,2]
[366946113,1750597839057,-500.43012814,0.00020273,2]
[366946114,1750597839066,-500.50267874,0.00020273,2]
[366946115,1750597839078,-500.0,0.00020273,2]
[366946116,1750597839088,-500.74374198,0.00020273,2]
[366946117,1750597839098,-500.0,0.00020273,2]
[366946118,1750597839108,-528.80985038,0.00020273,2]
[366946119,1750597839117,-367.84689339,0.00020273,2]
[366946120,1750597839127,-541.45082461,0.00020273,2]
[366946121,1750597839137,-500.0,0.00020273,2]
[366946122,1750597839147,-151.75081943,0.00020273,2]
[366946123,1750597839157,-500.64588502,0.00020273,2]
[366946124,1750597839167,-500.0,0.00020273,2]
[366946125,1750597839176,-156.07488646,0.00020273,2]
[366946126,1750597839186,-500.0,0.00020273,2]
[366946127,1750597839195,-502.52562412,0.00020273,2]
[366946128,1750597839205,-500.0,0.00020273,2]
[366946129,1750597839215,-502.83672334,0.00020273,2]
[366946130,1750597839226,-559.69951743,0.00020273,2]
[366946131,1750597839236,-1786.7246861,0.00020277,2]
[366946132,1750597839246,-21005.0257348,0.00020277,2]
[366946133,1750597839256,-8049.9451115,0.00020277,2]
[366946134,1750597839267,-151.49,0.00020281,2]
[366946135,1750597839277,-500.0,0.0002029,2]
[366946136,1750597839287,-500.0,0.0002029,2]
[366946137,1750597839296,-500.0,0.0002029,2]
[366946138,1750597839306,-500.0,0.0002029,2]
[366946139,1750597839316,-500.0,0.0002029,2]
[366946140,1750597839326,-180.19350446,0.0002029,2]
[366946141,1750597839335,-227.58166746,0.0002029,2]
[366946142,1750597839346,-500.0,0.0002029,2]
[366946143,1750597839356,-500.0,0.0002029,2]
[366946144,1750597839365,-500.0,0.0002029,2]
[366946145,1750597839374,-500.0,0.0002029,2]
[366946146,1750597839384,-500.0,0.0002029,2]
[366946147,1750597839394,-500.0,0.0002029,2]
[366946148,1750597839407,-500.0,0.0002029,2]
[366946149,1750597839417,-500.0,0.0002029,2]
[366946150,1750597839426,-500.0,0.0002029,2]
[366946151,1750597839436,-500.0,0.0002029,2]
[366946152,1750597839446,-500.0,0.0002029,2]
[366946153,1750597839456,-500.0,0.0002029,2]
[366946154,1750597839467,-500.0,0.0002029,2]
[366946155,1750597839477,-500.0,0.0002029,2]
[366946156,1750597839487,-500.0,0.0002029,2]
[366946157,1750597839497,-500.0,0.0002029,2]
[366946158,1750597839507,-500.0,0.0002029,2]
[366946159,1750597839517,-400.0,0.0002029,2]
[366946160,1750597839526,-300.0,0.0002029,2]
[366946161,1750597839536,-300.0,0.0002029,2]
[366946162,1750597839546,-666.0,0.0002029,2]
[366946163,1750597839556,-300.0,0.0002029,2]
[366946164,1750597839565,-150.0,0.00020291,2]
[366946165,1750597839576,-235265.82034947,0.00020291,2]
[366946166,1750597839585,-235265.82034947,0.00020291,2]
[366946167,1750597839595,-151.0,0.00020291,2]
[366946168,1750597839604,-151.0,0.00020291,2]
[366946169,1750597839614,-152.172687,0.00020291,2]
[366946170,1750597839623,-151.0,0.00020291,2]
[366946171,1750597839633,-151.0,0.00020291,2]
[366946172,1750597839643,-152.272825,0.00020291,2]
[366946173,1750597839652,-152.13024,0.00020291,2]
[366946174,1750597839661,-151.0,0.00020291,2]
[366946175,1750597839671,-151.0,0.00020291,2]
[366946177,1750597839680,-151.0,0.00020291,2]
[366946178,1750597839690,-151.0,0.00020291,2]
[366946179,1750597839699,-151.0,0.00020291,2]
[366946180,1750597839709,-151.0,0.00020291,2]
[366946181,1750597839718,-151.0,0.00020291,2]
[366946182,1750597839728,-151.0,0.00020291,2]
[366946183,1750597839737,-151.0,0.00020291,2]
[366946184,1750597839746,-151.0,0.00020291,2]
[366946185,1750597839756,-151.0,0.00020291,2]
[366946186,1750597839766,-151.0,0.00020291,2]
[366946187,1750597839776,-161.409541,0.00020291,2]
[366946188,1750597839786,-151.0,0.00020291,2]
[366946189,1750597839796,-151.0,0.00020291,2]
[366946190,1750597839806,-151.0,0.00020291,2]
[366946191,1750597839815,-151.0,0.00020291,2]
[366946192,1750597839825,-151.0,0.00020291,2]
[366946193,1750597839835,-151.0,0.00020291,2]
[366946194,1750597839844,-151.0,0.00020291,2]
[366946196,1750597839854,-151.0,0.00020291,2]
[366946197,1750597839864,-152.03867,0.00020291,2]
[366946198,1750597839873,-151.0,0.00020291,2]
[366946199,1750597839883,-152.729053,0.00020291,2]
[366946200,1750597839892,-151.0,0.00020291,2]
[366946201,1750597839902,-151.0,0.00020291,2]
[366946202,1750597839912,-153.498088,0.00020291,2]
[366946203,1750597839921,-203.703856,0.00020291,2]
[366946204,1750597839931,-203.703856,0.00020291,2]
[366946205,1750597839941,-203.703856,0.00020291,2]
[366946206,1750597839951,-203.703856,0.00020291,2]
[366946207,1750597839961,-244.26379,0.00020291,2]
[366946208,1750597839971,-244.26379,0.00020291,2]
[366946209,1750597839980,-244.26379,0.00020291,2]
[366946210,1750597839990,-244.26379,0.00020291,2]
[366946211,1750597839999,-151.0,0.00020291,2]
[366946212,1750597840009,-151.0,0.00020291,2]
[366946213,1750597840019,-151.0,0.00020291,2]
[366946214,1750597840028,-160.917405,0.00020291,2]
[366946215,1750597840038,-151.0,0.00020291,2]
[366946216,1750597840047,-160.917405,0.00020291,2]
[366946217,1750597840057,-151.423708,0.00020291,2]
[366946218,1750597840066,-160.917405,0.00020291,2]
[366946219,1750597840076,-160.917405,0.00020291,2]
[366946220,1750597840086,-151.0,0.00020291,2]
[366946221,1750597840096,-152.362591,0.00020291,2]
[366946222,1750597840105,-151.0,0.00020291,2]
[366946223,1750597840115,-151.0,0.00020291,2]
[366946224,1750597840124,-151.0,0.00020291,2]
[366946225,1750597840134,-151.0,0.00020291,2]
[366946226,1750597840143,-151.0,0.00020291,2]
[366946227,1750597840152,-207.186243,0.00020291,2]
[366946228,1750597840162,-151.0,0.00020291,2]
[366946229,1750597840171,-449.663828,0.00020291,2]
[366946230,1750597840181,-156.636763,0.00020291,2]
[366946231,1750597840191,-156.636763,0.00020291,2]
[366946232,1750597840201,-151.0,0.00020291,2]
[366946233,1750597840211,-156.636763,0.00020291,2]
[366946234,1750597840220,-156.636763,0.00020291,2]
[366946235,1750597840230,-449.663828,0.00020291,2]
[366946236,1750597840239,-151.42195,0.00020291,2]
[366946237,1750597840250,-151.0,0.00020291,2]
[366946238,1750597840259,-227.289352,0.00020291,2]
[366946239,1750597840269,-270.721649,0.00020291,2]
[366946240,1750597840279,-218.484371,0.00020291,2]
[366946241,1750597840289,-227.289352,0.00020291,2]
[366946243,1750597840299,-151.0,0.00020291,2]
[366946245,1750597840308,-157.888733,0.00020291,2]
[366946247,1750597840318,-151.0,0.00020291,2]
[366946249,1750597840327,-151.0,0.00020291,2]
[366946251,1750597840336,-252.976894,0.00020291,2]
[366946253,1750597840346,-151.300273,0.00020291,2]
[366946264,1750597840581,-151.633051,0.00020291,2]
[366946265,1750597840633,-152.557438,0.00020291,2]
[366946266,1750597840643,-151.0,0.00020291,2]
[366946267,1750597840652,-151.0,0.00020291,2]
[366946268,1750597840661,-277.70039,0.00020291,2]
[366946269,1750597840671,-151.0,0.00020291,2]
[366946271,1750597840680,-151.0,0.00020291,2]
[366946272,1750597840690,-151.0,0.00020291,2]
[366946274,1750597840699,-151.0,0.00020291,2]
[366946276,1750597840708,-151.0,0.00020291,2]
[366946278,1750597840717,-151.0,0.00020291,2]
[366946280,1750597840727,-151.0,0.00020291,2]
[366946282,1750597840736,-151.0,0.00020291,2]
[366946285,1750597840746,-151.0,0.00020291,2]
[366946287,1750597840755,-151.0,0.00020291,2]
[366946288,1750597840764,-151.0,0.00020291,2]
[366946290,1750597840773,-151.0,0.00020291,2]
[366946291,1750597840782,-151.0,0.00020291,2]
[366946292,1750597840792,-151.0,0.00020291,2]
[366946293,1750597840802,-151.0,0.00020291,2]
[366946294,1750597840812,-151.0,0.00020291,2]
[366946295,1750597840822,-151.0,0.00020291,2]
[366946296,1750597840832,-151.0,0.00020291,2]
[366946297,1750597840842,-151.0,0.00020291,2]
[366946298,1750597840851,-151.0,0.00020291,2]
[366946299,1750597840861,-151.0,0.00020291,2]
[366946300,1750597840870,-151.686808,0.00020291,2]
[366946301,1750597840880,-945.565872,0.00020291,2]
[366946302,1750597840889,-298.851782,0.00020291,2]
[366946303,1750597840898,-945.565872,0.00020291,2]
[366946304,1750597840908,-151.0,0.00020291,2]
[366946305,1750597840917,-151.0,0.00020291,2]
[366946306,1750597840926,-154.223574,0.00020291,2]
[366946307,1750597840935,-151.0,0.00020291,2]
[366946308,1750597840945,-151.0,0.00020291,2]
[366946309,1750597840954,-151.0,0.00020291,2]
[366946310,1750597840964,-185.429773,0.00020291,2]
[366946311,1750597840974,-151.87218,0.00020291,2]
[366946312,1750597840984,-151.0,0.00020291,2]
[366946313,1750597840993,-151.0,0.00020291,2]
[366946314,1750597841003,-151.0,0.00020291,2]
[366946315,1750597841012,-151.0,0.00020291,2]
[366946316,1750597841022,-151.0,0.00020291,2]
[366946317,1750597841031,-151.0,0.00020291,2]
[366946318,1750597841041,-151.0,0.00020291,2]
[366946319,1750597841050,-151.0,0.00020291,2]
[366946320,1750597841060,-151.0,0.00020291,2]
[366946321,1750597841070,-151.0,0.00020291,2]
[366946322,1750597841079,-151.0,0.00020291,2]
[366946323,1750597841089,-151.0,0.00020291,2]
[366946324,1750597841098,-151.0,0.00020291,2]
[366946325,1750597841107,-765.681044,0.00020291,2]
[366946326,1750597841117,-765.681044,0.00020291,2]
[366946327,1750597841126,-765.681044,0.00020291,2]
[366946328,1750597841136,-765.681044,0.00020291,2]
[366946329,1750597841146,-151.66978,0.00020291,2]
[366946330,1750597841155,-151.0,0.00020291,2]
[366946331,1750597841165,-1863.510272,0.00020291,2]
[366946332,1750597841174,-1863.510272,0.00020291,2]
[366946333,1750597841184,-1863.510272,0.00020291,2]
[366946334,1750597841193,-1863.510272,0.00020291,2]
[366946335,1750597841202,-153.489326,0.00020291,2]
[366946336,1750597841212,-151.0,0.00020291,2]
[366946337,1750597841221,-151.0,0.00020291,2]
[366946338,1750597841231,-151.0,0.00020291,2]
[366946339,1750597841240,-151.0,0.00020291,2]
[366946340,1750597841249,-151.0,0.00020291,2]
[366946341,1750597841258,-151.0,0.00020291,2]
[366946342,1750597841268,-151.0,0.000203,2]
[366946343,1750597841277,-500.0,0.00020323,2]
[366946344,1750597841287,-500.0,0.00020323,2]
[366946345,1750597841296,-500.0,0.00020323,2]
[366946346,1750597841305,-500.0,0.00020323,2]
[366946347,1750597841315,-500.0,0.00020323,2]
[366946348,1750597841324,-500.0,0.00020323,2]
[366946349,1750597841334,-500.0,0.00020323,2]
[366946350,1750597841343,-500.0,0.00020323,2]
[366946351,1750597841353,-500.0,0.00020323,2]
[366946352,1750597841362,-500.0,0.00020323,2]
[366946353,1750597841371,-500.0,0.00020323,2]
[366946354,1750597841380,-500.0,0.00020323,2]
[366946355,1750597841389,-500.0,0.00020323,2]
[366946356,1750597841401,-500.0,0.00020323,2]
[366946357,1750597841411,-500.0,0.00020323,2]
[366946358,1750597841419,-500.0,0.00020323,2]
[366946359,1750597841429,-500.0,0.00020323,2]
[366946360,1750597841439,-500.0,0.00020323,2]
[366946361,1750597841448,-500.0,0.00020323,2]
[366946362,1750597841457,-500.0,0.00020323,2]
[366946363,1750597841467,-500.0,0.00020323,2]
[366946364,1750597841478,-500.0,0.00020323,2]
[366946365,1750597841488,-500.0,0.00020323,2]
[366946366,1750597841497,-500.0,0.00020323,2]
[366946367,1750597841507,-505.0,0.00020323,2]
[366946368,1750597841516,-500.0,0.00020323,2]
[366946369,1750597841525,-500.0,0.00020323,2]
[366946370,1750597841535,-500.0,0.00020323,2]
[366946371,1750597841544,-500.0,0.00020323,2]
[366946372,1750597841553,-500.0,0.00020323,2]
[366946373,1750597841563,-500.0,0.00020323,2]
[366946374,1750597841572,-500.0,0.00020323,2]
[366946375,1750597841581,-500.0,0.00020323,2]
[366946376,1750597841590,-500.0,0.00020323,2]
[366946377,1750597841599,-200.0,0.00020323,2]
[366946378,1750597841608,-2465.79,0.000204,2]
[366946379,1750597841617,-168.0,0.00020456,2]
[366946380,1750597841626,-1258.54217496,0.00020521,3]
[366946381,1750597841636,-150.0,0.00020538,2]
[366946382,1750597841646,-869.44,0.00020538,2]
[366946383,1750597841657,-473.59,0.00020538,2]
[366946384,1750597841667,-215.0738,0.00020557,2]
[366946385,1750597841677,-192.37146967,0.00020564,2]
[366946386,1750597841686,-992.64246944,0.00020572,2]
[366946387,1750597841695,-150.0,0.00020574,2]